bitfinex/quotes_BTCUSD_20250421
["timestamp","ask_amount","ask_price","bid_price","bid_amount"]
[1745258946262,0.23017395,86891.0,86889.0,0.01150893]
[1745258946764,0.01588922,86890.0,86889.0,0.01150893]
[1745258947514,0.14115396,86890.0,86880.0,0.01151012]
[1745258947827,0.01150906,86888.0,86884.0,0.01150959]
[1745258948049,0.01150906,86888.0,86886.0,0.01150933]
[1745258948050,0.01588204,86887.0,86886.0,0.01150933]
[1745258948474,0.001,86891.0,86888.0,0.23018074]
[1745258948683,0.001,86891.0,86890.0,0.23017608]
[1745258948889,0.001,86891.0,86889.0,0.23017873]
[1745258949113,0.24167724,86893.0,86887.0,0.23018309]
[1745258949114,0.24168703,86890.0,86887.0,0.23018309]
[1745258949312,0.24268703,86890.0,86887.0,0.24169229]
[1745258949688,0.001,86890.0,86888.0,0.23018107]
[1745258949877,0.23017354,86891.0,86889.0,0.2301787]
[1745258950467,0.23017411,86891.0,86889.0,0.2301787]
[1745258951328,0.01150853,86892.0,86889.0,0.24168763]
[1745258951756,0.01150853,86892.0,86886.0,0.01150933]
[1745258951757,0.23014344,86903.0,86897.0,0.01150787]
[1745258951985,0.23014344,86903.0,86890.0,0.0467]
[1745258951986,0.24166789,86897.0,86894.0,0.01150827]
[1745258952629,0.24166789,86897.0,86894.0,0.2416728]
[1745258953206,0.24366789,86897.0,86894.0,0.2416728]
[1745258953670,0.24166906,86896.0,86893.0,0.24167644]
[1745258954172,0.24166906,86896.0,86893.0,0.24167456]
[1745258955296,0.24366906,86896.0,86893.0,0.24167456]
[1745258955968,0.013508,86896.0,86894.0,0.23016424]
[1745258956325,0.013508,86896.0,86893.0,0.24167456]
[1745258956488,0.2321608,86896.0,86893.0,0.24167456]
[1745258956703,0.2311608,86896.0,86893.0,0.24167456]
[1745258957863,0.24166581,86897.0,86894.0,0.24167293]
[1745258958075,0.23116039,86896.0,86894.0,0.24167293]
[1745258958286,0.23216039,86896.0,86894.0,0.24167293]
[1745258958502,0.23116039,86896.0,86894.0,0.24167293]
[1745258958965,0.24167098,86895.0,86892.0,0.24167725]
[1745258959195,0.2301914,86885.0,86880.0,0.01151012]
[1745258959479,0.23017929,86889.0,86886.0,0.2416935]
[1745258960136,0.23017895,86889.0,86887.0,0.23018355]
[1745258960358,0.23017895,86889.0,86886.0,0.2416935]
[1745258960571,0.24168788,86889.0,86886.0,0.2416935]
[1745258961219,0.23018225,86888.0,86886.0,0.2416935]
[1745258961651,0.01150946,86885.0,86881.0,0.24170742]
[1745258961887,0.23020495,86880.0,86877.0,0.01151052]
[1745258962108,0.23019992,86881.0,86878.0,0.23020787]
[1745258962357,0.01150986,86882.0,86879.0,0.24171346]
[1745258962595,0.01151079,86875.0,86871.0,0.24171338]
[1745258962813,0.23023172,86869.0,86868.0,0.0018438]
[1745258963037,0.34298766,86869.0,86868.0,0.0018438]
[1745258964320,0.34198766,86869.0,86868.0,0.0018438]
[1745258964984,0.34298766,86869.0,86868.0,0.0018438]
[1745258965401,0.34398766,86869.0,86868.0,0.0018438]
[1745258965885,0.002,86869.0,86868.0,0.0018438]
[1745258966123,0.002,86869.0,86868.0,0.23207817]
[1745258966799,0.002,86869.0,86868.0,0.2343803]
[1745258967017,0.002,86869.0,86868.0,0.2828803]
[1745258967243,0.002,86869.0,86868.0,0.28057817]
[1745258967457,0.001,86869.0,86868.0,0.28057817]
[1745258967672,0.002,86869.0,86868.0,0.28057817]
[1745258967902,0.001,86869.0,86868.0,0.28057817]
[1745258968128,0.01150933,86886.0,86882.0,0.2301967]
[1745258968348,0.12526527,86886.0,86882.0,0.2301967]
[1745258968594,0.01584851,86885.0,86882.0,0.2301967]
[1745258969214,0.23019228,86884.0,86881.0,0.24170988]
[1745258969423,0.01584372,86883.0,86881.0,0.24170988]
[1745258971513,0.23019975,86882.0,86876.0,0.23021212]
[1745258971746,0.01151092,86874.0,86869.0,0.24174067]
[1745258971984,0.01151105,86873.0,86870.0,0.01151145]
[1745258972186,0.01151092,86874.0,86870.0,0.01151145]
[1745258972405,0.01151092,86874.0,86872.0,0.23022337]
[1745258973131,0.24172107,86877.0,86873.0,0.23022112]
[1745258973343,0.35547738,86877.0,86874.0,0.23021847]
[1745258974024,0.23021339,86876.0,86874.0,0.23021847]
[1745258975112,0.23021646,86875.0,86873.0,0.01151105]
[1745258975939,0.2437241,86876.0,86873.0,0.24173163]
[1745258976445,0.001,86875.0,86873.0,0.01151105]
[1745258977115,0.23023172,86869.0,86856.0,0.0115133]
[1745258977325,0.34398766,86869.0,86857.0,0.01151317]
[1745258977533,0.35971809,86869.0,86857.0,0.01151317]
[1745258978190,0.35971809,86869.0,86854.0,0.01151357]
[1745258978403,0.36071809,86869.0,86855.0,0.24178135]
[1745258978630,0.36071809,86869.0,86855.0,0.01151344]
[1745258978836,0.35971809,86869.0,86855.0,0.01151344]
[1745258979036,0.36171809,86869.0,86855.0,0.01151344]
[1745258979288,0.36171809,86869.0,86851.0,0.24179326]
[1745258979512,0.53297809,86869.0,86850.0,5.0]
[1745258980001,0.53497809,86869.0,86850.0,5.0]
[1745258980225,0.23025028,86862.0,86850.0,5.0]
[1745258980439,0.90990622,86862.0,86850.0,5.0]
[1745258980643,0.92561987,86862.0,86850.0,5.0]
[1745258981493,0.93936577,86862.0,86850.0,5.0]
[1745258981712,0.93936577,86862.0,86851.0,0.23027921]
[1745258981936,0.44535955,86862.0,86859.0,0.24176816]
[1745258982156,0.44535955,86862.0,86860.0,0.0924647]
[1745258982369,0.54836959,86862.0,86850.0,5.0]
[1745258982598,0.55136959,86862.0,86851.0,0.01151397]
[1745258982810,0.55136959,86862.0,86852.0,0.01151383]
[1745258983027,0.55136959,86862.0,86851.0,0.0924647]
[1745258983201,0.55136959,86862.0,86852.0,0.01151383]
[1745258983884,0.54836959,86862.0,86852.0,0.01151383]
[1745258984087,0.13146959,86862.0,86852.0,0.01151383]
[1745258984304,0.13246959,86862.0,86851.0,0.10397867]
[1745258984984,0.13246959,86862.0,86853.0,0.0115137]
[1745258985182,0.13246959,86862.0,86851.0,0.33425655]
[1745258985822,0.13246959,86862.0,86852.0,0.01151383]
[1745258986243,0.13246959,86862.0,86854.0,0.01151357]
[1745258986649,0.13246959,86862.0,86852.0,0.24178909]
[1745258987296,0.13246959,86862.0,86852.0,0.01151383]
[1745258987729,0.13246959,86862.0,86853.0,0.0115137]
[1745258987935,0.13246959,86862.0,86856.0,0.0115133]
[1745258988158,0.13246959,86862.0,86857.0,0.01151317]
[1745258988373,0.13246959,86862.0,86856.0,0.0115133]
[1745258988586,0.13246959,86862.0,86854.0,0.01151357]
[1745258988796,0.13246959,86862.0,86855.0,0.01151344]
[1745258989006,0.13246959,86862.0,86856.0,0.0115133]
[1745258989118,0.13246959,86862.0,86855.0,0.01151344]
[1745258989326,0.13246959,86862.0,86856.0,0.0115133]
[1745258989532,0.13246959,86862.0,86858.0,0.01151304]
[1745258989895,0.13246959,86862.0,86856.0,0.24177814]
[1745258990145,0.13246959,86862.0,86856.0,0.0115133]
[1745258990800,0.13246959,86862.0,86857.0,0.01151317]
[1745258991009,0.13246959,86862.0,86852.0,0.01151383]
[1745258991229,0.13246959,86862.0,86849.0,0.23112641]
[1745258991444,0.36271987,86862.0,86852.0,0.01151383]
[1745258992044,0.36271987,86862.0,86854.0,0.24178498]
[1745258992252,0.36271987,86862.0,86853.0,0.0115137]
[1745258992448,0.36271987,86862.0,86852.0,0.01151383]
[1745258992857,0.36271987,86862.0,86850.0,5.0]
[1745258995069,0.50271987,86862.0,86850.0,5.0]
[1745258998208,0.54941987,86862.0,86850.0,5.0]
[1745259001694,0.96531987,86862.0,86850.0,5.0]
[1745259002993,0.97606205,86862.0,86850.0,5.0]
[1745259003422,1.36336205,86862.0,86850.0,5.0]
[1745259004301,1.36236205,86862.0,86850.0,5.0]
[1745259004739,1.36536205,86862.0,86850.0,5.0]
[1745259004955,1.36336205,86862.0,86850.0,5.0]
[1745259005145,1.36636205,86862.0,86850.0,5.0]
[1745259007286,1.49565495,86862.0,86861.0,1e-08]
[1745259007503,1.52886273,86862.0,86861.0,1e-08]
[1745259007724,0.63382029,86851.0,86850.0,4.27665034]
[1745259007950,1.01169623,86851.0,86850.0,4.27665034]
[1745259008185,1.02697194,86851.0,86850.0,2.45576034]
[1745259008618,1.03771412,86851.0,86850.0,2.45576034]
[1745259008838,1.56836617,86851.0,86850.0,2.45576034]
[1745259009055,1.45461412,86851.0,86850.0,2.45576034]
[1745259009468,1.4663351,86851.0,86850.0,1.48268444]
[1745259009687,1.4663351,86851.0,86817.0,0.0008438]
[1745259009688,0.35454085,86834.0,86817.0,0.0008438]
[1745259009912,0.5848919,86824.0,86823.0,0.0008404]
[1745259010133,0.58489721,86822.0,86817.0,0.0008438]
[1745259010353,1.27455315,86822.0,86817.0,0.0008438]
[1745259010619,1.31109415,86822.0,86817.0,0.0008438]
[1745259010838,1.43048049,86822.0,86817.0,0.0008438]
[1745259011048,1.44197144,86822.0,86817.0,0.0008438]
[1745259011484,0.40554085,86821.0,86817.0,0.0008438]
[1745259011702,0.67929679,86821.0,86817.0,0.0008438]
[1745259011944,0.69437603,86821.0,86817.0,0.0008438]
[1745259012360,0.70511821,86821.0,86817.0,0.0008438]
[1745259012589,0.63161047,86817.0,86801.0,0.004]
[1745259012833,0.2459264,86811.0,86801.0,0.004]
[1745259013072,0.58595028,86802.0,86801.0,0.004]
[1745259013307,0.9945684,86802.0,86801.0,0.004]
[1745259013520,1.00896369,86802.0,86801.0,0.004]
[1745259013726,1.08042305,86802.0,86801.0,0.004]
[1745259014563,1.08442305,86802.0,86801.0,0.004]
[1745259014803,1.08442305,86802.0,86774.0,0.0933091]
[1745259014804,0.6859609,86798.0,86774.0,0.0933091]
[1745259015011,0.93971684,86798.0,86786.0,0.0004219]
[1745259015223,1.12729151,86798.0,86786.0,0.0004219]
[1745259015437,1.09401418,86798.0,86786.0,0.0004219]
[1745259015627,1.11547354,86798.0,86786.0,0.0004219]
[1745259016460,0.58599011,86787.0,86786.0,0.0004219]
[1745259016670,1.27380225,86787.0,86786.0,0.0004219]
[1745259016879,1.3259209,86787.0,86786.0,0.0004219]
[1745259017172,1.2966942,86787.0,86786.0,0.0004219]
[1745259017597,1.3259209,86787.0,86786.0,0.0004219]
[1745259018031,1.33666308,86787.0,86786.0,0.0014219]
[1745259018207,1.34366308,86787.0,86786.0,0.0014219]
[1745259020686,0.84260627,86787.0,86786.0,0.0014219]
[1745259020888,0.14581771,86787.0,86786.0,0.0024219]
[1745259021095,0.03206177,86787.0,86786.0,0.0948866]
[1745259021308,0.01774218,86787.0,86786.0,0.0948866]
[1745259021727,0.007,86787.0,86786.0,0.0948866]
[1745259021935,0.004,86787.0,86786.0,0.0938866]
[1745259022166,0.006,86787.0,86786.0,0.32533851]
[1745259022577,0.002,86787.0,86786.0,0.32533851]
[1745259022775,0.002,86787.0,86786.0,0.23387381]
[1745259022988,0.005,86787.0,86786.0,0.23387381]
[1745259023443,0.002,86787.0,86786.0,0.23387381]
[1745259023648,0.11575594,86787.0,86786.0,0.0044219]
[1745259023901,0.13012693,86787.0,86786.0,0.0044219]
[1745259024107,0.16812693,86787.0,86786.0,0.0024219]
[1745259024538,0.12812693,86787.0,86786.0,0.0024219]
[1745259025582,0.12912693,86787.0,86786.0,0.0024219]
[1745259025892,0.12912693,86787.0,86786.0,0.0014219]
[1745259026060,0.13012693,86787.0,86786.0,0.0014219]
[1745259030874,0.13012693,86787.0,86786.0,0.0004219]
[1745259030875,0.21874076,86787.0,86786.0,0.0004219]
[1745259031098,0.44919002,86787.0,86786.0,0.0004219]
[1745259031331,0.46373087,86787.0,86786.0,0.0004219]
[1745259031766,0.4744734,86787.0,86786.0,0.0004219]
[1745259031972,0.39685957,86787.0,86786.0,0.0004219]
[1745259032199,0.39585957,86787.0,86786.0,0.0004219]
[1745259032627,0.73685957,86787.0,86786.0,0.0004219]
[1745259032834,0.78325957,86787.0,86786.0,0.0004219]
[1745259033058,0.78225957,86787.0,86786.0,0.0004219]
[1745259033267,0.79589688,86787.0,86786.0,0.0004219]
[1745259033689,0.79789688,86787.0,86786.0,0.0014219]
[1745259033878,0.8191629,86787.0,86786.0,0.0014219]
[1745259034080,0.8161629,86787.0,86786.0,0.0014219]
[1745259034232,0.8131629,86787.0,86786.0,0.0004219]
[1745259034774,0.8151629,86787.0,86786.0,0.0014219]
[1745259035415,0.8181629,86787.0,86786.0,0.0014219]
[1745259037045,1.2322191,86787.0,86786.0,0.0014219]
[1745259038729,0.23048112,86775.0,86774.0,0.0008444]
[1745259038933,0.59839706,86775.0,86774.0,0.0008444]
[1745259039143,1.37825617,86775.0,86774.0,0.0008444]
[1745259039357,1.42269653,86775.0,86774.0,0.0008444]
[1745259039797,1.52839151,86775.0,86774.0,0.0008444]
[1745259040015,1.53902882,86775.0,86774.0,0.0008444]
[1745259040221,1.57300175,86775.0,86774.0,0.0008444]
[1745259040443,1.47030677,86775.0,86774.0,0.0008444]
[1745259040857,1.46830677,86775.0,86774.0,0.0008444]
[1745259041288,1.47030677,86775.0,86774.0,0.0018444]
[1745259041498,1.46830677,86775.0,86774.0,0.0018444]
[1745259041708,1.56690677,86775.0,86774.0,0.0018444]
[1745259042079,1.68265882,86775.0,86774.0,0.0018444]
[1745259042591,1.68065882,86775.0,86774.0,0.0018444]
[1745259042801,1.68465882,86775.0,86774.0,0.0028444]
[1745259043029,1.56890677,86775.0,86774.0,0.00065294]
[1745259043246,1.47230677,86775.0,86774.0,0.00065294]
[1745259043669,1.45776592,86775.0,86774.0,0.00065294]
[1745259044325,1.47230677,86775.0,86774.0,0.00065294]
[1745259044561,1.45104075,86775.0,86774.0,0.00065294]
[1745259046580,1.47916477,86775.0,86774.0,0.00065294]
[1745259050785,1.45104075,86775.0,86774.0,0.00065294]
[1745259053986,1.4364999,86775.0,86774.0,0.00065294]
[1745259054187,1.06452697,86775.0,86774.0,0.00065294]
[1745259054399,0.69404585,86775.0,86774.0,0.00065294]
[1745259054606,0.68541236,86775.0,86774.0,0.00065294]
[1745259054822,0.68141236,86775.0,86774.0,0.001]
[1745259055316,0.55961505,86775.0,86774.0,0.001]
[1745259055529,0.55961505,86775.0,86774.0,0.0506]
[1745259055732,0.55661505,86775.0,86774.0,0.0506]
[1745259055841,0.55361505,86775.0,86774.0,0.0506]
[1745259056061,0.55561505,86775.0,86774.0,0.0516]
[1745259056341,0.55361505,86775.0,86774.0,0.0506]
[1745259056548,0.55361505,86775.0,86774.0,0.0516]
[1745259056767,0.55461505,86775.0,86774.0,0.0516]
[1745259057439,0.14055885,86775.0,86774.0,0.0516]
[1745259057689,0.14055885,86775.0,86774.0,0.28208378]
[1745259057932,0.02680291,86775.0,86774.0,0.28208378]
[1745259058167,0.001,86775.0,86774.0,0.28208378]
[1745259058881,0.4140562,86784.0,86781.0,0.24198718]
[1745259059118,0.11375594,86783.0,86781.0,0.24198718]
[1745259059813,0.13631831,86798.0,86796.0,0.2304243]
[1745259059814,0.01063731,86798.0,86796.0,0.2304243]
[1745259060063,0.01063731,86798.0,86797.0,0.0988]
[1745259060302,0.4140562,86811.0,86808.0,0.01151967]
[1745259060538,0.11375594,86810.0,86809.0,0.34]
[1745259060770,0.11460074,86810.0,86809.0,0.34]
[1745259061867,0.11460074,86810.0,86806.0,0.34]
[1745259062077,0.11460074,86810.0,86797.0,0.33022197]
[1745259062078,0.13460074,86810.0,86797.0,0.33022197]
[1745259062301,0.13660074,86810.0,86801.0,0.34]
[1745259062504,0.11660074,86810.0,86801.0,0.3515206]
[1745259062717,0.11660074,86810.0,86808.0,0.001]
[1745259063141,0.01151954,86809.0,86801.0,0.34]
[1745259063410,0.12527561,86808.0,86797.0,0.0496]
[1745259063683,0.0038448,86810.0,86809.0,0.57139085]
[1745259063942,0.0058448,86810.0,86809.0,0.62099085]
[1745259064263,0.0038448,86810.0,86809.0,0.62099085]
[1745259064452,0.0018448,86810.0,86809.0,0.62099085]
[1745259064938,0.0008448,86810.0,86809.0,0.62099085]
[1745259066021,0.11460074,86810.0,86809.0,0.3896]
[1745259066229,0.11560074,86810.0,86809.0,0.3896]
[1745259066492,0.13317411,86810.0,86809.0,0.34]
[1745259066663,0.13317411,86810.0,86803.0,0.0451]
[1745259067013,0.11375594,86809.0,86803.0,0.0451]
[1745259067163,0.11375594,86809.0,86803.0,0.05662033]
[1745259067379,0.01756884,86808.0,86807.0,0.23039616]
[1745259067565,0.11375594,86808.0,86807.0,0.23039616]
[1745259068661,0.11375594,86808.0,86807.0,0.34]
[1745259069455,0.11375594,86808.0,86807.0,0.341]
[1745259069855,0.11475594,86808.0,86807.0,0.57139616]
[1745259071126,0.11475594,86808.0,86807.0,0.23139616]
[1745259073428,0.11475594,86808.0,86807.0,0.001]
[1745259074052,0.11475594,86808.0,86807.0,0.23139616]
[1745259074884,0.11475594,86808.0,86807.0,0.001]
[1745259077784,0.1116368,86808.0,86807.0,0.001]
[1745259078631,0.1116368,86808.0,86807.0,0.23139616]
[1745259078846,0.001,86808.0,86807.0,0.23239616]
[1745259079060,0.001,86808.0,86807.0,0.33029616]
[1745259079328,0.0008448,86810.0,86809.0,0.32929085]
[1745259080347,0.0008448,86810.0,86809.0,0.33229085]
[1745259080587,0.0018448,86810.0,86809.0,0.33229085]
[1745259080811,0.0008448,86810.0,86809.0,0.32929085]
[1745259081037,0.4159,86839.0,86835.0,0.23032126]
[1745259081274,0.11375594,86838.0,86835.0,0.23032126]
[1745259081496,0.13147116,86838.0,86837.0,0.23031657]
[1745259081750,0.01771522,86838.0,86837.0,0.23131657]
[1745259081985,0.4159,86858.0,86844.0,0.230298]
[1745259082212,0.11460074,86845.0,86844.0,0.230298]
[1745259083130,0.11560074,86845.0,86844.0,0.230298]
[1745259083821,0.11760074,86845.0,86844.0,0.230298]
[1745259084042,0.11660074,86845.0,86844.0,0.230298]
[1745259084266,0.11460074,86845.0,86844.0,0.230298]
[1745259084478,0.11560074,86845.0,86844.0,0.230298]
[1745259085353,0.11660074,86845.0,86844.0,0.230298]
[1745259085583,0.0028448,86845.0,86844.0,0.278898]
[1745259086034,0.0028448,86845.0,86844.0,0.279898]
[1745259086253,0.0018448,86845.0,86844.0,0.279898]
[1745259086475,0.0008448,86845.0,86844.0,0.279898]
[1745259086721,0.0008448,86845.0,86844.0,0.281898]
[1745259087203,0.0018448,86845.0,86844.0,0.281898]
[1745259087440,0.0018448,86845.0,86844.0,0.44355394]
[1745259090978,0.0018448,86845.0,86844.0,0.44255394]
[1745259091142,0.0018448,86845.0,86844.0,0.44355394]
[1745259094241,0.0018448,86845.0,86844.0,0.329798]
[1745259098297,0.0018448,86845.0,86844.0,0.44355394]
[1745259098771,0.004,86859.0,86858.0,0.27806088]
[1745259100582,0.004,86859.0,86858.0,0.27906088]
[1745259100773,1e-08,86859.0,86858.0,0.32796088]
[1745259100986,1e-08,86859.0,86858.0,0.66796088]
[1745259101809,1e-08,86859.0,86858.0,0.66996088]
[1745259102005,1e-08,86859.0,86858.0,0.66896088]
[1745259102211,0.0008442,86875.0,86861.0,0.61805293]
[1745259102212,1e-08,86862.0,86861.0,0.61805293]
[1745259102422,1e-08,86862.0,86861.0,0.73180887]
[1745259102779,1e-08,86862.0,86861.0,0.74634972]
[1745259103200,1e-08,86862.0,86861.0,1.16534972]
[1745259103419,0.0008442,86875.0,86874.0,0.23021847]
[1745259103650,0.0008448,86885.0,86883.0,0.23119462]
[1745259103847,0.0008448,86885.0,86883.0,0.23349615]
[1745259104058,0.0008448,86885.0,86883.0,0.28029615]
[1745259104263,0.0008448,86885.0,86883.0,0.27799462]
[1745259104885,0.0008448,86885.0,86883.0,0.29043425]
[1745259105314,0.0008448,86885.0,86883.0,0.23219462]
[1745259106182,0.0018446,86884.0,86883.0,0.23119462]
[1745259106620,0.0008446,86884.0,86883.0,0.23119462]
[1745259106953,0.0028446,86884.0,86883.0,0.23119462]
[1745259107683,0.0038446,86884.0,86883.0,0.23119462]
[1745259111162,0.0008446,86884.0,86883.0,0.23119462]
[1745259111574,0.0028446,86884.0,86883.0,0.23119462]
[1745259112183,0.0028446,86884.0,86883.0,0.23349628]
[1745259112389,0.0028446,86884.0,86883.0,0.23119462]
[1745259113292,0.0028446,86884.0,86883.0,0.27909621]
[1745259113488,0.0028446,86884.0,86883.0,0.27679462]
[1745259119800,0.0028446,86884.0,86883.0,0.32659462]
[1745259125983,0.0028446,86884.0,86883.0,0.23019462]
[1745259126201,0.0028446,86884.0,86878.0,0.01151039]
[1745259126202,0.0497,86883.0,86878.0,0.001]
[1745259126412,0.01151026,86879.0,86868.0,0.24174395]
[1745259126626,0.38493441,86878.0,86867.0,0.23023591]
[1745259126860,0.14321456,86878.0,86873.0,0.23021864]
[1745259127072,0.14321456,86878.0,86872.0,0.01151118]
[1745259127515,0.1243951,86878.0,86875.0,0.01151079]
[1745259127717,0.02936997,86877.0,86871.0,0.24173719]
[1745259127924,0.11375594,86876.0,86873.0,0.01151105]
[1745259128143,0.02936997,86877.0,86875.0,0.23121582]
[1745259128353,0.01063916,86877.0,86875.0,0.001]
[1745259128568,0.01063916,86876.0,86875.0,0.001]
[1745259129230,0.01063916,86876.0,86875.0,0.23121582]
[1745259129455,0.01063916,86876.0,86875.0,0.001]
[1745259129676,0.01163916,86876.0,86875.0,0.23121582]
[1745259129896,0.001,86876.0,86875.0,0.23121582]
[1745259130965,0.00852798,86882.0,86880.0,0.01151012]
[1745259131405,0.01248376,86884.0,86880.0,0.01151012]
[1745259131618,0.01148095,86883.0,86880.0,0.01151012]
[1745259131831,0.0018446,86884.0,86880.0,0.01151012]
[1745259132277,0.001,86882.0,86881.0,0.001]
[1745259132495,0.0018446,86884.0,86883.0,0.001]
[1745259132780,0.0018446,86884.0,86883.0,0.23119462]
[1745259133849,0.0038446,86884.0,86883.0,0.23119462]
[1745259134296,0.001,86882.0,86881.0,0.001]
[1745259134532,0.0018446,86884.0,86860.0,0.32169964]
[1745259134533,0.0018446,86884.0,86875.0,0.01151079]
[1745259134753,0.1325304,86882.0,86878.0,0.01151039]
[1745259134969,0.11375594,86881.0,86878.0,0.01151039]
[1745259135181,0.13252814,86881.0,86877.0,0.01151052]
[1745259135405,0.14403813,86881.0,86871.0,0.001]
[1745259135622,0.14403813,86881.0,86871.0,0.24273729]
[1745259135853,0.13252814,86881.0,86875.0,0.24272658]
[1745259136093,0.13252814,86881.0,86876.0,0.01151065]
[1745259136311,0.13252814,86881.0,86878.0,0.01151039]
[1745259136747,0.11375594,86881.0,86877.0,0.24172048]
[1745259137070,0.01876994,86880.0,86877.0,0.24172048]
[1745259137213,0.13252588,86880.0,86877.0,0.24172048]
[1745259137634,0.13252588,86880.0,86878.0,0.23020708]
[1745259137983,0.13252588,86880.0,86877.0,0.24172048]
[1745259138210,0.13252588,86880.0,86879.0,0.23020522]
[1745259138439,0.13252588,86880.0,86878.0,0.23020749]
[1745259138831,0.13252588,86880.0,86877.0,0.24172088]
[1745259138832,0.13352588,86880.0,86877.0,0.24172088]
[1745259138966,0.13252588,86880.0,86879.0,0.23020522]
[1745259139167,0.13352588,86880.0,86879.0,0.23020522]
[1745259139409,0.01976994,86880.0,86879.0,0.23120522]
[1745259139765,0.001,86880.0,86879.0,0.23120522]
[1745259139967,0.002,86880.0,86879.0,0.23120522]
[1745259140362,0.0018446,86884.0,86880.0,0.01151012]
[1745259140543,0.01864727,86883.0,86879.0,0.24271548]
[1745259140748,0.002,86880.0,86879.0,0.24271548]
[1745259141200,0.0018446,86884.0,86879.0,0.24271548]
[1745259141453,0.001,86880.0,86879.0,0.001]
[1745259141661,0.001,86880.0,86875.0,0.001]
[1745259141874,0.01964049,86880.0,86877.0,0.001]
[1745259142094,0.0038446,86884.0,86883.0,0.23119462]
[1745259142536,0.0028446,86884.0,86883.0,0.23119462]
[1745259143399,0.0028446,86884.0,86883.0,0.23349625]
[1745259143611,0.0048446,86884.0,86883.0,0.27999625]
[1745259143826,0.0048446,86884.0,86883.0,0.27769462]
[1745259144023,0.0028446,86884.0,86883.0,0.27769462]
[1745259145171,0.0038446,86884.0,86883.0,0.27769462]
[1745259145399,0.0028446,86884.0,86883.0,0.27769462]
[1745259145604,0.0018446,86884.0,86883.0,0.27769462]
[1745259146025,0.0028446,86884.0,86883.0,0.27769462]
[1745259146308,0.0018446,86884.0,86883.0,0.27769462]
[1745259148949,0.0018446,86884.0,86883.0,0.27869462]
[1745259149155,0.0018446,86884.0,86883.0,0.27769462]
[1745259149375,0.0018446,86884.0,86883.0,0.27869462]
[1745259150912,0.0008446,86884.0,86883.0,0.27869462]
[1745259153601,0.0008446,86884.0,86883.0,0.30018199]
[1745259156108,0.0008446,86884.0,86883.0,0.41393793]
[1745259156553,1e-08,86889.0,86888.0,0.27768138]
[1745259156770,1e-08,86889.0,86888.0,0.73143732]
[1745259157230,1e-08,86889.0,86888.0,0.75292469]
[1745259158288,1e-08,86889.0,86888.0,0.75492469]
[1745259159030,1e-08,86889.0,86888.0,0.75592469]
[1745259159432,1e-08,86889.0,86888.0,0.64216875]
[1745259161557,1e-08,86889.0,86888.0,0.30216875]
[1745259162202,1e-08,86889.0,86888.0,0.25566875]
[1745259162421,1e-08,86889.0,86888.0,0.23418138]
[1745259163282,1e-08,86889.0,86888.0,0.23648279]
[1745259163959,1e-08,86889.0,86888.0,0.23118138]
[1745259164172,1e-08,86889.0,86888.0,0.23218138]
[1745259165015,1e-08,86889.0,86888.0,0.23118138]
[1745259168580,1e-08,86889.0,86888.0,0.25268394]
[1745259171092,1e-08,86889.0,86888.0,0.29928394]
[1745259171492,1e-08,86889.0,86888.0,0.34588394]
[1745259173346,1e-08,86889.0,86888.0,0.29928394]
[1745259174445,1e-08,86889.0,86888.0,0.27778138]
[1745259175756,1e-08,86889.0,86888.0,0.39153732]
[1745259176593,1e-08,86889.0,86888.0,0.41306124]
[1745259180684,1e-08,86889.0,86888.0,0.2993053]
[1745259180848,1e-08,86889.0,86888.0,0.2527053]
[1745259184304,1e-08,86889.0,86888.0,0.23118138]
[1745259184450,1e-08,86889.0,86888.0,0.23018138]
[1745259185077,0.00100001,86889.0,86888.0,0.23018138]
[1745259185649,0.01737827,86889.0,86888.0,0.23018138]
[1745259185875,0.01737827,86889.0,86888.0,0.23118138]
[1745259186089,0.01837827,86889.0,86888.0,0.23018138]
[1745259186320,0.00200001,86889.0,86888.0,0.23018138]
[1745259186727,0.01837827,86889.0,86888.0,0.23018138]
[1745259186938,0.00200001,86889.0,86888.0,0.23018138]
[1745259187372,0.00300001,86889.0,86887.0,0.23018388]
[1745259187591,0.11375594,86888.0,86884.0,0.01150959]
[1745259187871,0.0115092,86887.0,86876.0,0.01251065]
[1745259188077,0.11375594,86886.0,86883.0,0.23019434]
[1745259188290,0.01629301,86885.0,86883.0,0.01150973]
[1745259188501,0.11375594,86884.0,86881.0,0.24170891]
[1745259188711,0.11375594,86884.0,86881.0,0.24170776]
[1745259188949,0.01628849,86883.0,86878.0,0.01151039]
[1745259189175,0.11375594,86882.0,86879.0,0.24171538]
[1745259189384,0.11375594,86882.0,86881.0,0.23019992]
[1745259190245,0.11375594,86882.0,86879.0,0.24171539]
[1745259190457,0.11375594,86882.0,86880.0,0.23020246]
[1745259190682,0.01150999,86881.0,86875.0,0.23021571]
[1745259190898,0.11575594,86882.0,86870.0,0.01251145]
[1745259190899,0.01151092,86874.0,86870.0,0.01251145]
[1745259191087,0.11375594,86874.0,86873.0,0.24173145]
[1745259191551,0.4325,86888.0,86881.0,0.23019992]
[1745259191771,0.11775594,86882.0,86881.0,0.23019992]
[1745259192017,0.004,86882.0,86881.0,0.23119992]
[1745259192231,0.002,86882.0,86881.0,0.23119992]
[1745259192449,0.004,86882.0,86881.0,0.23119992]
[1745259192696,0.002,86882.0,86881.0,0.23119992]
[1745259193191,0.006,86882.0,86881.0,0.23119992]
[1745259193448,0.004,86882.0,86881.0,0.23119992]
[1745259193704,0.005,86882.0,86881.0,0.23119992]
[1745259193953,0.006,86882.0,86881.0,0.23119992]
[1745259195926,0.006,86882.0,86881.0,0.23019992]
[1745259198865,0.125148,86896.0,86880.0,0.23120257]
[1745259198866,0.01150814,86895.0,86890.0,0.23017479]
[1745259199097,0.12990251,86894.0,86892.0,0.01150853]
[1745259199314,0.12990251,86894.0,86890.0,0.24168408]
[1745259199531,0.12990251,86894.0,86891.0,0.24168143]
[1745259199958,0.14136,86894.0,86891.0,0.24168143]
[1745259200169,0.01150893,86889.0,86884.0,0.01150959]
[1745259200411,0.12988895,86888.0,86886.0,0.23018476]
[1745259200683,0.12988895,86888.0,86885.0,0.24169836]
[1745259200888,0.12988895,86888.0,86885.0,0.24169739]
[1745259201106,0.12988895,86888.0,86887.0,0.23018403]
[1745259201320,0.12988895,86888.0,86882.0,0.23019477]
[1745259201321,0.01150933,86886.0,86882.0,0.23019477]
[1745259201533,0.01150973,86883.0,86877.0,0.23021023]
[1745259201761,0.0482,86881.0,86878.0,0.24171745]
[1745259201969,0.11375594,86880.0,86878.0,0.24171745]
[1745259202162,0.12987086,86880.0,86878.0,0.24171745]
[1745259202614,0.12987086,86880.0,86878.0,0.01151039]
[1745259203227,0.23020522,86879.0,86878.0,0.001]
[1745259203439,0.38007382,86879.0,86878.0,0.001]
[1745259203844,0.1498686,86879.0,86878.0,0.001]